bitfinex-derivatives/quotes_BTCF0:USTF0_20250924
["timestamp","ask_amount","ask_price","bid_price","bid_amount"]
[1758710406495,1.17244762,112870.0,112860.0,0.76638622]
[1758710411006,1.17244762,112870.0,112860.0,0.4865901]
[1758710411208,1.17244732,112870.0,112860.0,0.76638622]
[1758710412607,0.8926512,112870.0,112860.0,0.4865901]
[1758710414908,0.80408,112870.0,112860.0,0.4865901]
[1758710415108,0.80392,112870.0,112860.0,0.735324]
[1758710416510,0.8925712,112870.0,112860.0,0.735324]
[1758710419410,0.0906512,112870.0,112860.0,0.735324]
[1758710419611,0.80388,112870.0,112860.0,0.735324]
[1758710420006,0.002,112870.0,112860.0,0.735324]
[1758710420202,0.80388,112870.0,112860.0,0.735324]
[1758710420616,0.8924512,112870.0,112860.0,0.735324]
[1758710421114,0.8925312,112870.0,112860.0,0.735324]
[1758710421818,0.8925312,112870.0,112860.0,0.4865901]
[1758710422015,0.8925312,112870.0,112860.0,0.735324]
[1758710428421,0.8925312,112870.0,112860.0,0.4865901]
[1758710428622,0.8925312,112870.0,112860.0,0.735324]
[1758710428925,0.8925312,112870.0,112860.0,0.374524]
[1758710429121,0.8925312,112870.0,112860.0,0.735324]
[1758710432424,0.0906512,112870.0,112860.0,0.735324]
[1758710432623,0.8924912,112870.0,112860.0,0.735324]
[1758710434226,0.0906512,112870.0,112860.0,0.735324]
[1758710434427,0.8924512,112870.0,112860.0,0.735324]
[1758710436124,0.8924512,112870.0,112860.0,0.89445498]
[1758710436823,0.8924512,112870.0,112860.0,0.64572108]
[1758710437624,0.0906512,112870.0,112860.0,0.64572108]
[1758710437824,0.8924512,112870.0,112860.0,0.64572108]
[1758710440830,0.8924512,112870.0,112860.0,0.4865901]
[1758710449134,0.8924512,112870.0,112860.0,0.735324]
[1758710459342,0.8924512,112870.0,112860.0,0.89445498]
[1758710459542,0.8924512,112870.0,112860.0,0.64572108]
[1758710461042,0.8924512,112870.0,112860.0,0.4865901]
[1758710471047,0.80388,112870.0,112860.0,0.4865901]
[1758710472145,0.8924511,112870.0,112860.0,0.735324]
[1758710474550,1.17226376,112870.0,112860.0,0.76640276]
[1758710476549,1.17226376,112870.0,112860.0,0.92553374]
[1758710477148,1.17226376,112870.0,112860.0,0.76640276]
[1758710477955,1.17226376,112870.0,112860.0,0.92553374]
[1758710480349,1.17226376,112870.0,112860.0,0.76640276]
[1758710486254,0.8924511,112870.0,112860.0,0.76640276]
[1758710486453,1.17226376,112870.0,112860.0,0.4865901]
[1758710486654,1.17226376,112870.0,112860.0,0.76640276]
[1758710490758,0.8924511,112870.0,112860.0,0.76640276]
[1758710490950,1.17226376,112870.0,112860.0,0.76640276]
[1758710493158,1.17226376,112870.0,112860.0,0.4865901]
[1758710493357,1.17226376,112870.0,112860.0,0.76640276]
[1758710494054,0.8924511,112870.0,112860.0,0.76640276]
[1758710494257,1.17226376,112870.0,112860.0,0.76640276]
[1758710494559,0.8924511,112870.0,112860.0,0.76640276]
[1758710494958,0.80388,112870.0,112860.0,0.76640276]
[1758710495263,1.08369266,112870.0,112860.0,0.76640276]
[1758710495762,1.08369266,112870.0,112860.0,0.4865901]
[1758710495964,1.17198376,112870.0,112860.0,0.76640276]
[1758710498465,0.37046376,112870.0,112860.0,0.76640276]
[1758710498662,1.17194376,112870.0,112860.0,0.4865901]
[1758710498965,0.8921312,112870.0,112860.0,0.76640276]
[1758710501765,0.0906512,112870.0,112860.0,0.76640276]
[1758710501962,0.8921312,112870.0,112860.0,0.4865901]
[1758710502362,0.8921312,112870.0,112860.0,0.76640276]
[1758710502670,1.17194386,112870.0,112860.0,0.76640276]
[1758710504067,0.37046386,112870.0,112860.0,0.76640276]
[1758710504366,1.17194386,112870.0,112860.0,0.76640276]
[1758710504567,0.8921312,112870.0,112860.0,0.76640276]
[1758710504766,1.17194386,112870.0,112860.0,0.76640276]
[1758710509069,1.17194386,112870.0,112860.0,0.4865901]
[1758710509264,1.17194386,112870.0,112860.0,0.76640276]
[1758710513573,0.8921312,112870.0,112860.0,0.76640276]
[1758710513872,1.17194386,112870.0,112860.0,0.76640276]
[1758710514875,0.8921312,112870.0,112860.0,0.76640276]
[1758710516677,0.8921312,112870.0,112860.0,0.92553374]
[1758710519888,1.17194386,112870.0,112860.0,0.92553374]
[1758710520891,1.17194386,112870.0,112860.0,0.76640276]
[1758710527993,0.8921312,112870.0,112860.0,0.76640276]
[1758710533083,0.8921312,112870.0,112860.0,0.92553374]
[1758710534696,0.8921312,112870.0,112860.0,0.64572108]
[1758710536197,0.8921312,112870.0,112860.0,0.89443709]
[1758710536500,0.8921312,112870.0,112860.0,0.64572108]
[1758710538597,0.8921312,112870.0,112860.0,0.4865901]
[1758710540302,0.8921312,112870.0,112860.0,0.64572108]
[1758710541100,0.8921312,112870.0,112860.0,0.4865901]
[1758710541699,0.0906512,112870.0,112860.0,0.4865901]
[1758710541894,0.8919302,112870.0,112860.0,0.4865901]
[1758710542294,0.8919302,112870.0,112860.0,0.73530611]
[1758710545905,0.8919302,112870.0,112860.0,0.89443709]
[1758710550011,0.8919302,112870.0,112860.0,0.64572108]
[1758710551506,0.8919302,112870.0,112860.0,0.4865901]
[1758710558208,0.8919302,112870.0,112860.0,0.64572108]
[1758710560409,0.8919302,112870.0,112860.0,0.4865901]
[1758710561212,0.8919302,112870.0,112860.0,0.64572108]
[1758710566016,0.8919302,112870.0,112860.0,0.4865901]
[1758710569820,0.0906502,112870.0,112860.0,0.4865901]
[1758710570017,0.8918102,112870.0,112860.0,0.4865901]
[1758710572112,0.8918102,112870.0,112860.0,0.39801]
[1758710572317,1.54052621,112870.0,112860.0,0.14865544]
[1758710572523,1.54052621,112870.0,112860.0,0.12729544]
[1758710572710,1.54052621,112870.0,112860.0,0.01585]
[1758710572906,1.54052621,112870.0,112860.0,0.03814]
[1758710575311,1.54044621,112870.0,112860.0,0.003]
[1758710575617,1.90132621,112870.0,112860.0,0.03857]
[1758710578926,1.90132621,112870.0,112860.0,0.003]
[1758710579622,0.0906864,112850.0,112840.0,0.03581]
[1758710579919,0.0906943,112840.0,112830.0,0.14725544]
[1758710580128,0.348166,112840.0,112830.0,0.21898787]
[1758710580520,0.708966,112840.0,112830.0,0.14725544]
[1758710581123,0.0907021,112830.0,112820.0,0.39661]
[1758710581328,1.49937811,112830.0,112820.0,0.03581]
[1758710581527,1.48237811,112830.0,112820.0,0.03581]
[1758710582231,1.48237811,112830.0,112820.0,0.14705557]
[1758710582527,1.88237811,112830.0,112820.0,0.14705557]
[1758710582729,1.88237811,112830.0,112820.0,0.03581]
[1758710583221,1.87937811,112830.0,112820.0,0.14699793]
[1758710584123,1.87937811,112830.0,112820.0,0.15199793]
[1758710585130,1.87937811,112830.0,112820.0,0.16099793]
[1758710586431,1.6306621,112830.0,112820.0,0.16099793]
[1758710586728,1.87937811,112830.0,112820.0,0.16099793]
[1758710587328,1.87937811,112830.0,112820.0,0.04981]
[1758710589128,1.51857811,112830.0,112820.0,0.04981]
[1758710595328,1.2698621,112830.0,112820.0,0.04981]
[1758710595527,1.51857811,112830.0,112820.0,0.04981]
[1758710596634,1.8299986,112830.0,112820.0,0.04781]
[1758710597133,1.8299986,112830.0,112820.0,0.04181]
[1758710603340,1.8299986,112830.0,112820.0,0.03981]
[1758710603740,1.8319986,112830.0,112820.0,0.03681]
[1758710605542,1.8319986,112830.0,112820.0,0.14799793]
[1758710607845,1.8319986,112830.0,112820.0,0.23660753]
[1758710608040,1.55193035,112830.0,112820.0,0.23660753]
[1758710609145,1.2718621,112830.0,112820.0,0.23660753]
[1758710609343,1.55193035,112830.0,112820.0,0.23660753]
[1758710612552,1.2718621,112830.0,112820.0,0.23660753]
[1758710612740,1.55221035,112830.0,112820.0,0.23660753]
[1758710616348,1.55221035,112830.0,112820.0,0.51667578]
[1758710616951,1.2721421,112830.0,112820.0,0.51667578]
[1758710617352,1.55221035,112830.0,112820.0,0.51667578]
[1758710618451,1.55221035,112830.0,112820.0,0.40548785]
[1758710618947,1.55221035,112830.0,112820.0,0.1254196]
[1758710619350,1.55221035,112830.0,112820.0,0.40548785]
[1758710619550,1.15221035,112830.0,112820.0,0.40548785]
[1758710619848,1.15221035,112830.0,112820.0,0.1254196]
[1758710624856,1.15221035,112830.0,112820.0,0.03681]
[1758710627350,1.15221035,112830.0,112820.0,0.19594098]
[1758710628954,1.15221035,112830.0,112820.0,0.03681]
[1758710629849,1.15221035,112830.0,112820.0,0.19594098]
[1758710632058,1.15221035,112830.0,112820.0,0.28455128]
[1758710632959,0.8721421,112830.0,112820.0,0.28455128]
[1758710633259,1.15217035,112830.0,112820.0,0.92541953]
[1758710636455,0.0707021,112830.0,112820.0,0.92541953]
[1758710636761,1.15217035,112830.0,112820.0,0.92541953]
[1758710637261,0.8721021,112830.0,112820.0,0.92541953]
[1758710637460,1.15217035,112830.0,112820.0,0.92541953]
[1758710639261,1.15217035,112830.0,112820.0,0.64535128]
[1758710639461,1.15217035,112830.0,112820.0,0.92541953]
[1758710641362,0.35077035,112830.0,112820.0,0.92541953]
[1758710641559,0.8721021,112830.0,112820.0,0.92541953]
[1758710641763,1.15217035,112830.0,112820.0,0.92541953]
[1758710641964,1.15217035,112830.0,112820.0,0.76628855]
[1758710642764,1.15217035,112830.0,112820.0,0.77495183]
[1758710646366,0.8721021,112830.0,112820.0,0.77495183]
[1758710646571,0.002,112830.0,112820.0,1.26358466]
[1758710646769,0.002,112830.0,112820.0,1.65520653]
[1758710647072,0.0021,112850.0,112840.0,0.1239446]
[1758710647266,0.0021,112850.0,112840.0,0.87626156]
[1758710647466,0.80538,112850.0,112840.0,0.87626156]
[1758710647668,0.80538,112850.0,112840.0,0.92394383]
[1758710648377,0.80738,112850.0,112840.0,0.64387558]
[1758710648673,0.81738,112850.0,112840.0,0.92394383]
[1758710650580,0.9059668,112850.0,112840.0,0.92394383]
[1758710651770,0.9059668,112850.0,112840.0,0.76481285]
[1758710652176,1.18603505,112850.0,112840.0,0.76481285]
[1758710653672,0.9059668,112850.0,112840.0,0.76481285]
[1758710653876,0.1026868,112850.0,112840.0,0.76481285]
[1758710654076,0.9058068,112850.0,112840.0,0.76481285]
[1758710654678,0.1006868,112850.0,112840.0,0.76581285]
[1758710654877,0.9038068,112850.0,112840.0,0.76581285]
[1758710655079,0.1006868,112850.0,112840.0,0.76581285]
[1758710655284,0.9038068,112850.0,112840.0,0.76581285]
[1758710655575,0.8938068,112850.0,112840.0,0.76881285]
[1758710658577,0.8938068,112850.0,112840.0,0.73754356]
[1758710659579,0.80522,112850.0,112840.0,0.73754356]
[1758710659779,0.80522,112850.0,112840.0,0.84876482]
[1758710660681,0.8938068,112850.0,112840.0,0.84876482]
[1758710661075,0.8938068,112850.0,112840.0,0.73754356]
[1758710662278,0.0906849,112860.0,112850.0,0.01367]
[1758710662479,0.8934849,112860.0,112850.0,0.39753]
[1758710663179,0.8934849,112860.0,112850.0,0.4861168]
[1758710664479,0.8964849,112860.0,112850.0,0.4861168]
[1758710665080,0.8964849,112860.0,112850.0,0.59733953]
[1758710665576,0.8964849,112860.0,112850.0,0.66769147]
[1758710670991,1.14528386,112860.0,112850.0,0.66769147]
[1758710671589,0.8964849,112860.0,112850.0,0.66769147]
[1758710673891,0.8964849,112860.0,112850.0,0.55646874]
[1758710680892,0.8964849,112860.0,112850.0,0.55646884]
[1758710687293,0.8964849,112860.0,112850.0,0.46788194]
[1758710691800,0.8964849,112860.0,112850.0,0.57935915]
[1758710693498,1.2572849,112860.0,112850.0,0.14820721]
[1758710694699,1.50608386,112860.0,112850.0,0.14820721]
[1758710697101,1.50608386,112860.0,112850.0,0.03673]
[1758710697999,1.59466486,112860.0,112840.0,0.17301098]
[1758710698503,0.0906869,112850.0,112840.0,0.19424098]
[1758710699002,0.0906869,112850.0,112840.0,0.64463568]
[1758710699201,0.0021,112850.0,112840.0,0.64463568]
[1758710699403,0.0021,112850.0,112840.0,0.64763568]
[1758710700200,0.0906869,112850.0,112840.0,0.64763568]
[1758710701505,0.0906869,112850.0,112840.0,0.55904098]
[1758710702498,0.0906869,112850.0,112840.0,0.64763568]
[1758710707009,0.0906869,112850.0,112840.0,0.89643464]
[1758710710708,0.0906869,112850.0,112840.0,0.80783994]
[1758710710910,0.0906869,112850.0,112840.0,0.55904098]
[1758710712920,0.0906869,112850.0,112840.0,0.64763558]
[1758710713808,0.0906869,112850.0,112840.0,0.55904098]
[1758710714113,0.33948586,112850.0,112840.0,0.55904098]
[1758710714511,0.0906869,112850.0,112840.0,0.39991]
[1758710715414,0.0906869,112850.0,112840.0,0.4885046]
[1758710719317,0.0906869,112850.0,112840.0,0.64763558]
[1758710720718,0.37061532,112850.0,112840.0,0.927564]
[1758710721124,0.37061532,112850.0,112840.0,0.76843302]
[1758710724229,0.37061532,112850.0,112840.0,0.927564]
[1758710728332,0.0906869,112850.0,112840.0,0.927564]
[1758710728529,0.37061532,112850.0,112840.0,0.927564]
[1758710729635,0.0906869,112850.0,112840.0,0.927564]
[1758710729824,0.37061532,112850.0,112840.0,0.927564]
[1758710732337,0.37061532,112850.0,112840.0,0.76843302]
[1758710733836,0.0906869,112850.0,112840.0,0.76843302]
[1758710734036,0.37061532,112850.0,112840.0,0.76843302]
[1758710735542,0.37061532,112850.0,112840.0,0.927564]
[1758710737940,0.37061532,112850.0,112840.0,0.76843302]
[1758710750744,0.37061532,112850.0,112840.0,0.927564]
[1758710761254,0.37061532,112850.0,112840.0,0.76843302]
[1758710764055,0.37061532,112850.0,112840.0,0.40763302]
[1758710764257,0.37061532,112850.0,112840.0,0.76843302]
[1758710764458,0.0906869,112850.0,112840.0,0.76843302]
[1758710764857,0.37061532,112850.0,112840.0,0.76843302]
[1758710766857,0.37061532,112850.0,112840.0,0.87998383]
[1758710767158,0.37061532,112850.0,112840.0,0.76843302]
[1758710775060,0.37061532,112850.0,112840.0,0.927564]
[1758710780169,0.37061532,112850.0,112840.0,0.64763558]
[1758710780370,0.37061532,112850.0,112840.0,0.927564]
[1758710782571,0.0906869,112850.0,112840.0,0.64763558]
[1758710785872,0.0906869,112850.0,112840.0,0.28683558]
[1758710786172,0.0906869,112850.0,112840.0,0.64763558]
[1758710790878,0.0906869,112850.0,112840.0,0.28683558]
[1758710791175,0.0906869,112850.0,112840.0,0.64763558]
[1758710795879,0.0906869,112850.0,112840.0,0.9850737]
[1758710796078,0.8920469,112850.0,112840.0,0.82594272]
[1758710797177,0.8920469,112850.0,112840.0,0.57712172]
[1758710798379,0.8920469,112850.0,112840.0,0.82594272]
[1758710798579,0.8920469,112850.0,112840.0,0.57712172]
[1758710801879,0.8920469,112850.0,112840.0,0.7362527]
[1758710821001,0.8920469,112850.0,112840.0,0.57712172]
[1758710822309,1.1408679,112850.0,112840.0,0.03911]
[1758710822504,1.5408679,112850.0,112840.0,0.1507348]
[1758710825203,1.5408679,112850.0,112840.0,0.03911]
[1758710831611,1.2920469,112850.0,112840.0,0.1277047]
[1758710831810,1.5408679,112850.0,112840.0,0.1277047]
[1758710832312,1.5408679,112850.0,112840.0,0.03911]
[1758710833311,1.5408679,112850.0,112840.0,0.19824098]
[1758710841326,1.5408679,112850.0,112840.0,0.03911]
[1758710842528,1.57203326,112850.0,112840.0,0.03911]
[1758710850738,1.57203326,112850.0,112840.0,0.15072938]
[1758710851540,1.57203326,112850.0,112840.0,0.03911]
[1758710855643,1.93283326,112850.0,112840.0,0.03911]
[1758710855942,1.57203326,112850.0,112840.0,0.03911]
[1758710859450,1.17203326,112850.0,112840.0,0.03911]
[1758710860643,1.17203326,112850.0,112840.0,0.19824098]
[1758710861652,0.8920469,112850.0,112840.0,0.28683568]
[1758710861948,1.17203326,112850.0,112840.0,0.28683568]
[1758710863850,1.17203326,112850.0,112840.0,0.1277047]
[1758710864452,1.17203326,112850.0,112840.0,0.23932666]
[1758710865154,1.17203326,112850.0,112840.0,0.1277047]
[1758710867054,1.17203326,112850.0,112840.0,0.40769106]
[1758710868158,1.17203326,112850.0,112840.0,0.1277047]
[1758710868350,1.17203326,112850.0,112840.0,0.40769106]
[1758710869059,1.17203326,112850.0,112840.0,0.1277047]
[1758710869361,0.8920469,112850.0,112840.0,0.1277047]
[1758710869562,1.17203326,112850.0,112840.0,0.23931833]
[1758710872766,0.8920469,112850.0,112840.0,0.23931833]
[1758710873064,1.17203326,112850.0,112840.0,0.23931833]
[1758710873562,1.17203326,112850.0,112840.0,0.1277047]
[1758710880067,1.17203326,112850.0,112840.0,0.28683568]
[1758710880367,0.8920469,112850.0,112840.0,0.28683568]
[1758710880570,1.17203326,112850.0,112840.0,0.28683568]
[1758710881067,1.17203326,112850.0,112840.0,0.1277047]
[1758710882670,1.17203326,112850.0,112840.0,0.03911]
[1758710883366,1.17203326,112850.0,112840.0,0.19824098]
[1758710884473,1.17203326,112850.0,112840.0,0.28683558]
[1758710893076,1.17203326,112850.0,112840.0,0.40769096]
[1758710899290,0.0906869,112850.0,112840.0,0.40769096]
[1758710899490,0.37066736,112860.0,112850.0,0.1254067]
[1758710899690,1.17166736,112860.0,112850.0,0.76619306]
[1758710899993,1.17166736,112860.0,112850.0,0.87776889]
[1758710900192,1.17166736,112860.0,112850.0,0.76619306]
[1758710900497,1.17166736,112860.0,112850.0,1.17512589]
[1758710900688,0.891681,112860.0,112850.0,1.17512589]
[1758710900888,1.17166736,112860.0,112850.0,1.17512589]
[1758710901996,1.17466736,112860.0,112850.0,1.17512589]
[1758710903196,1.17466736,112860.0,112850.0,1.28658901]
[1758710903397,1.17466736,112860.0,112850.0,1.35646612]
[1758710904595,0.894681,112860.0,112850.0,1.07647976]
[1758710904990,0.894681,112860.0,112850.0,1.32524381]
[1758710905191,0.894681,112860.0,112850.0,1.21378069]
[1758710905387,0.894681,112860.0,112850.0,1.3252206]
[1758710905794,0.894681,112860.0,112850.0,1.21378069]
[1758710906194,0.894681,112860.0,112850.0,0.96501664]
[1758710906394,0.894681,112860.0,112850.0,1.21378069]
[1758710906797,0.093681,112860.0,112850.0,0.90238996]
[1758710906997,0.894641,112860.0,112850.0,0.90238996]
[1758710907296,0.894641,112860.0,112850.0,1.01381398]
[1758710907496,0.0051,112860.0,112850.0,1.01381398]
[1758710907697,0.003,112860.0,112850.0,1.41381398]
[1758710907897,0.003,112860.0,112850.0,1.30238996]
[1758710909397,0.003,112860.0,112850.0,1.46152094]
[1758710910096,0.003,112860.0,112850.0,1.30238996]
[1758710910901,0.003,112860.0,112850.0,2.10330996]
[1758710913303,0.003,112860.0,112850.0,2.26244094]
[1758710915701,0.003,112860.0,112850.0,2.10330996]
[1758710915998,0.003,112860.0,112850.0,2.46410996]
[1758710917302,0.003,112860.0,112850.0,2.62324094]
[1758710918303,0.003,112860.0,112850.0,2.22324094]
[1758710922695,0.091579,112860.0,112850.0,2.22324094]
[1758710925204,0.091579,112860.0,112850.0,1.97447689]
[1758710925409,0.003,112860.0,112850.0,2.22324094]
[1758710932414,0.091579,112860.0,112850.0,2.22324094]
[1758710936022,0.003,112860.0,112850.0,2.22324094]
[1758710936618,0.003,112860.0,112850.0,2.06410996]
[1758710936821,0.091579,112860.0,112850.0,2.06410996]
[1758710937018,0.003,112860.0,112850.0,2.06410996]
[1758710940321,0.003,112860.0,112850.0,2.22339538]
[1758710942520,0.003,112860.0,112850.0,2.06410996]
[1758710943520,0.003,112860.0,112850.0,2.22339184]
[1758710943722,0.0026936,112860.0,112850.0,2.22339184]
[1758710944325,0.0026936,112860.0,112850.0,2.27098024]
[1758710945524,0.0026936,112860.0,112850.0,2.06410996]
[1758710946018,0.0026936,112860.0,112850.0,2.22330145]
[1758710947727,0.0026936,112860.0,112850.0,2.06410996]
[1758710948129,0.0026936,112860.0,112850.0,2.27098024]
[1758710948730,0.0026936,112860.0,112850.0,2.67098024]
[1758710949232,0.0026936,112860.0,112850.0,2.46410996]
[1758710951645,0.0026936,112860.0,112850.0,2.67098024]
[1758710959348,0.0026936,112860.0,112850.0,2.42221619]
[1758710959539,0.0026936,112860.0,112850.0,2.67098024]
[1758710966654,0.0026936,112860.0,112850.0,2.98178097]
[1758710967553,0.0026936,112860.0,112850.0,2.77491069]
[1758710971950,0.0026936,112860.0,112850.0,2.93419823]
[1758710975760,0.0026936,112860.0,112850.0,3.14106851]
[1758710975961,0.0026936,112860.0,112850.0,2.98178097]
[1758710979462,0.0026936,112860.0,112850.0,2.58178097]
[1758710985666,0.0026936,112860.0,112850.0,2.57284814]
[1758710986671,0.0026936,112860.0,112850.0,1.77192814]
[1758710986871,0.0026936,112860.0,112850.0,2.57248814]
[1758710987876,0.0026936,112860.0,112850.0,2.36561786]
[1758710988073,0.0026936,112860.0,112850.0,1.57382278]
[1758710988276,0.0026936,112860.0,112850.0,2.37434278]
[1758710988873,0.0026936,112860.0,112850.0,1.57382278]
[1758710989075,0.0026936,112860.0,112850.0,2.58121306]
[1758710990981,0.0026936,112860.0,112850.0,1.78069306]
[1758710991281,0.0912715,112860.0,112850.0,2.58121306]
[1758710991481,0.0912715,112860.0,112850.0,2.30143067]
[1758710991883,0.0026936,112860.0,112850.0,2.30143067]
[1758710993982,0.0026936,112860.0,112850.0,2.09456039]
[1758710997486,0.0026936,112860.0,112850.0,2.30143067]
[1758711001189,0.0026936,112860.0,112850.0,2.09456039]
[1758711003589,0.0026936,112860.0,112850.0,2.30143067]
[1758711005989,0.0026936,112860.0,112850.0,2.09456039]
[1758711006192,0.0026936,112860.0,112850.0,2.37434278]
[1758711009592,0.0026936,112860.0,112850.0,2.58121306]
[1758711011693,0.0026936,112860.0,112850.0,2.74047998]
[1758711012095,0.0026936,112860.0,112850.0,2.5336097]
[1758711014196,0.0026936,112860.0,112850.0,2.37434278]
[1758711014499,0.0026936,112860.0,112850.0,2.58121306]
[1758711016699,0.088568,112880.0,112870.0,0.0885701]
[1758711016900,0.088568,112880.0,112870.0,0.76416249]
[1758711017496,0.088568,112880.0,112870.0,1.65323606]
[1758711018001,0.091568,112880.0,112870.0,1.65323606]
[1758711019603,0.102568,112880.0,112870.0,1.65323606]
[1758711025411,0.102568,112880.0,112870.0,1.37345367]
[1758711025605,0.102568,112880.0,112870.0,1.65323606]
[1758711026713,0.102568,112880.0,112870.0,1.62211589]
[1758711027211,0.102568,112880.0,112870.0,1.78130811]
[1758711029315,0.102568,112880.0,112870.0,1.53264589]
[1758711029517,0.102568,112880.0,112870.0,1.78130811]
[1758711029814,0.102568,112880.0,112870.0,1.62211589]
[1758711030416,0.097568,112880.0,112870.0,1.62211589]
[1758711030617,0.094568,112880.0,112870.0,1.62211589]
[1758711032116,0.094568,112880.0,112870.0,1.78130811]
[1758711040117,0.094568,112880.0,112870.0,1.62211589]
[1758711048925,0.094568,112880.0,112870.0,1.78130811]
[1758711052837,0.0945622,112880.0,112870.0,1.89279265]
[1758711053020,0.0945622,112880.0,112870.0,2.09440043]
[1758711053724,0.006,112880.0,112870.0,2.09440043]
[1758711054031,0.006,112880.0,112870.0,2.14210811]
[1758711054733,0.006,112880.0,112870.0,1.98291589]
[1758711055233,0.006,112880.0,112870.0,2.38291589]
[1758711055431,0.006,112880.0,112870.0,2.54210811]
[1758711056326,0.006,112880.0,112870.0,2.38291589]
[1758711067442,0.006,112880.0,112870.0,2.54160306]
[1758711074051,0.006,112880.0,112870.0,2.38291589]
[1758711074950,0.006,112880.0,112870.0,2.58978617]
[1758711075252,0.0949619,112900.0,112890.0,0.1242944]
[1758711075452,0.0949619,112900.0,112890.0,0.73375662]
[1758711075840,0.0949619,112900.0,112890.0,0.82235019]
[1758711077845,0.0949619,112900.0,112890.0,0.98118708]
[1758711078452,0.0949619,112900.0,112890.0,1.05220126]
[1758711078752,0.1009619,112900.0,112890.0,1.05220126]
[1758711078954,0.1009619,112900.0,112890.0,1.06118388]
[1758711081752,1.91054412,112900.0,112890.0,0.30588229]
[1758711081959,1.91054412,112900.0,112890.0,0.1463554]
[1758711082152,1.91054412,112900.0,112890.0,0.03505]
[1758711084454,0.1009619,112900.0,112890.0,0.4844043]
[1758711084660,0.9010819,112900.0,112890.0,0.8216444]
[1758711085051,0.9010819,112900.0,112890.0,0.9329498]
[1758711085456,0.9010819,112900.0,112890.0,0.8216444]
[1758711085655,0.9010819,112900.0,112890.0,0.57298218]
[1758711086759,0.9010819,112900.0,112890.0,0.64420887]
[1758711088560,1.18075445,112900.0,112890.0,0.92388142]
[1758711089362,0.9010819,112900.0,112890.0,0.92388142]
[1758711089861,1.18075445,112900.0,112890.0,0.92388142]
[1758711090262,1.18075445,112900.0,112890.0,0.64420887]
[1758711090459,1.18075445,112900.0,112890.0,0.92388142]
[1758711092865,1.18075445,112900.0,112890.0,0.64420887]
[1758711093056,1.18075445,112900.0,112890.0,0.92388142]
[1758711095467,0.9010819,112900.0,112890.0,0.92388142]
[1758711095653,0.9010819,112900.0,112890.0,0.64420887]
[1758711095853,1.18075445,112900.0,112890.0,0.92388142]
[1758711098069,0.38063445,112900.0,112890.0,1.08271831]
[1758711098261,1.18247445,112900.0,112890.0,1.08271831]
[1758711100464,1.18247445,112900.0,112890.0,0.99416401]
[1758711101061,1.18247445,112900.0,112890.0,0.99414053]
[1758711101964,1.18247445,112900.0,112890.0,0.83530364]
[1758711103876,0.9028019,112900.0,112890.0,0.83530364]
[1758711104075,1.18247445,112900.0,112890.0,0.83530364]
[1758711104267,1.18247445,112900.0,112890.0,0.55563109]
[1758711104463,1.18247445,112900.0,112890.0,0.99414053]
[1758711105176,1.18247445,112900.0,112890.0,0.83530364]
[1758711107581,1.18247445,112900.0,112890.0,0.76407695]
[1758711108880,0.38063445,112900.0,112890.0,0.76407695]
[1758711109084,1.18251445,112900.0,112890.0,0.76407695]
[1758711110785,1.18251445,112900.0,112890.0,0.55618362]
[1758711110981,1.18251445,112900.0,112890.0,0.83585617]
[1758711111182,0.9028419,112900.0,112890.0,0.83585617]
[1758711111581,1.18251445,112900.0,112890.0,0.99469306]
[1758711112486,1.18251445,112900.0,112890.0,0.83585617]
[1758711112686,1.18251445,112900.0,112890.0,0.55618362]
[1758711112885,1.18251445,112900.0,112890.0,0.83585617]
[1758711113884,0.9028419,112900.0,112890.0,0.83585617]
[1758711114092,1.18251445,112900.0,112890.0,0.99469306]
[1758711115887,0.38063445,112900.0,112890.0,0.99469306]
[1758711116391,1.18227445,112900.0,112890.0,1.08327094]
[1758711116593,0.9025619,112900.0,112890.0,1.08327094]
[1758711116792,0.9025619,112900.0,112890.0,1.47445058]
[1758711116993,0.9025619,112900.0,112890.0,1.19477803]
[1758711117293,0.9026019,112900.0,112890.0,0.80359839]
[1758711117485,0.9026019,112900.0,112890.0,1.08327094]
[1758711118695,0.1009619,112900.0,112890.0,1.08327094]
[1758711118994,0.9026019,112900.0,112890.0,1.08327094]
[1758711119493,0.1009619,112900.0,112890.0,1.08327094]
[1758711119691,0.80764,112900.0,112890.0,1.36294349]
[1758711119890,0.8961867,112900.0,112890.0,1.36294349]
[1758711121198,0.8964667,112900.0,112890.0,1.36294349]
[1758711122997,0.8964667,112900.0,112890.0,1.2041066]
[1758711123400,0.8964667,112900.0,112890.0,1.36330855]
[1758711123701,0.80792,112900.0,112890.0,1.36330855]
[1758711125394,0.8964667,112900.0,112890.0,1.36330855]
[1758711128295,0.9028767,112900.0,112890.0,0.92443405]
[1758711130505,0.80792,112900.0,112890.0,0.92443405]
[1758711130804,0.80792,112900.0,112890.0,1.2041066]
[1758711132206,0.006,112900.0,112890.0,1.2041066]
[1758711132403,0.80772,112900.0,112890.0,1.2041066]
[1758711134106,0.8076,112900.0,112890.0,1.2041066]
[1758711137106,0.80748,112900.0,112890.0,1.2041066]
[1758711137910,0.80748,112900.0,112890.0,1.36330855]
[1758711139609,0.80748,112900.0,112890.0,1.2041066]
[1758711140109,0.006,112900.0,112890.0,1.31554616]
[1758711140702,0.6168,112900.0,112890.0,1.2041066]
[1758711141297,0.006,112900.0,112890.0,1.36330855]
[1758711142011,0.006,112900.0,112890.0,1.2041066]
[1758711143910,0.006,112900.0,112890.0,1.31554708]
[1758711144108,0.006,112900.0,112890.0,1.2041066]
[1758711144607,0.006,112900.0,112890.0,1.31554708]
[1758711145399,0.006,112900.0,112890.0,1.2041066]
[1758711146807,0.006,112900.0,112890.0,1.31557327]
[1758711147006,0.10553737,112930.0,112910.0,0.1246435]
[1758711147210,0.00809384,112930.0,112920.0,0.76511355]
[1758711147409,0.01450384,112930.0,112920.0,0.76511355]
[1758711148306,0.10302704,112930.0,112920.0,0.76511355]
[1758711148501,0.10302704,112930.0,112920.0,0.485441]
[1758711148707,0.11002704,112930.0,112920.0,0.73390087]
[1758711149214,0.11202704,112930.0,112920.0,0.73390087]
[1758711149714,0.01750384,112930.0,112920.0,0.73390087]
[1758711150314,0.01750384,112930.0,112920.0,0.82245522]
[1758711150815,0.01550384,112930.0,112920.0,0.82245522]
[1758711151012,0.01650384,112930.0,112920.0,0.82245522]
[1758711152409,0.01650384,112930.0,112920.0,0.8314314]
[1758711152615,0.10502704,112930.0,112920.0,0.94289807]
[1758711155218,0.10502704,112930.0,112920.0,0.93392189]
[1758711156515,0.10502704,112930.0,112920.0,0.84536754]
[1758711156717,0.10502704,112930.0,112920.0,0.50837667]
[1758711157517,0.10502704,112930.0,112920.0,0.39691]
[1758711157919,0.10502704,112930.0,112920.0,0.485441]
[1758711158919,0.10502704,112930.0,112920.0,0.73390087]
[1758711160421,0.10502704,112930.0,112920.0,0.84490614]
[1758711160723,0.10502704,112930.0,112920.0,0.73390087]